[Event "Late-Titled-Tuesday-Blitz-February-27-2024"]
[Site "Chess.com"]
[Date "2024.02.27"]
[Round "10"]
[White "Fh2411"]
[Black "Alex_Sahakyan2006"]
[Result "1-0"]
[WhiteElo "2649"]
[BlackElo "2805"]
[TimeControl "180+1"]
[EndTime "15:56:52 PST"]
[Termination "Fh2411 won on time"]

1. d4 {[%clk 0:03:00.9]} 1... Nf6 {[%clk 0:02:50.9]} 2. Nf3 {[%clk 0:03:00.9]}
2... d5 {[%clk 0:02:49.7]} 3. Bf4 {[%clk 0:02:59.8]} 3... c5 {[%clk 0:02:45.7]}
4. e3 {[%clk 0:03:00.1]} 4... Qb6 {[%clk 0:02:44.5]} 5. Nc3 {[%clk 0:02:55.4]}
5... c4 {[%clk 0:02:39.8]} 6. Rb1 {[%clk 0:02:40.1]} 6... e6 {[%clk 0:02:32.9]}
7. a3 {[%clk 0:02:38.1]} 7... Qa5 {[%clk 0:02:29.5]} 8. Qd2 {[%clk 0:02:37.6]}
8... Nc6 {[%clk 0:02:24.8]} 9. Be2 {[%clk 0:02:33.9]} 9... b5 {[%clk 0:02:21.5]}
10. Ne5 {[%clk 0:02:27.6]} 10... Nxe5 {[%clk 0:02:00.6]} 11. Bxe5 {[%clk
0:02:27.4]} 11... b4 {[%clk 0:01:58.6]} 12. axb4 {[%clk 0:02:25.6]} 12... Bxb4
{[%clk 0:01:59.5]} 13. Bxf6 {[%clk 0:02:25.1]} 13... gxf6 {[%clk 0:01:58.3]} 14.
O-O {[%clk 0:02:25.2]} 14... f5 {[%clk 0:01:50.2]} 15. Ra1 {[%clk 0:02:22]}
15... Qb6 {[%clk 0:01:47.7]} 16. Qc1 {[%clk 0:02:21.8]} 16... Bb7 {[%clk
0:01:32.8]} 17. Na4 {[%clk 0:01:58.7]} 17... Qc7 {[%clk 0:01:31]} 18. g3 {[%clk
0:01:53.3]} 18... h5 {[%clk 0:01:23.7]} 19. c3 {[%clk 0:01:05]} 19... Bd6 {[%clk
0:01:22]} 20. f4 {[%clk 0:01:04.9]} 20... h4 {[%clk 0:01:21]} 21. Kg2 {[%clk
0:00:54.7]} 21... Ke7 {[%clk 0:01:13.9]} 22. Rh1 {[%clk 0:00:51.4]} 22... Rag8
{[%clk 0:01:13.5]} 23. Kf2 {[%clk 0:00:52]} 23... Rh6 {[%clk 0:01:05.5]} 24. Qc2
{[%clk 0:00:51.6]} 24... Rgh8 {[%clk 0:00:56.9]} 25. Bf3 {[%clk 0:00:51.9]}
25... Qb8 {[%clk 0:00:50.1]} 26. b4 {[%clk 0:00:42.7]} 26... cxb3 {[%clk
0:00:30.9]} 27. Qxb3 {[%clk 0:00:42.5]} 27... Kf6 {[%clk 0:00:21.3]} 28. Rab1
{[%clk 0:00:29.9]} 28... hxg3+ {[%clk 0:00:17.7]} 29. hxg3 {[%clk 0:00:30.8]}
29... Rxh1 {[%clk 0:00:14.4]} 30. Bxh1 {[%clk 0:00:20.2]} 30... Bc6 {[%clk
0:00:10.4]} 31. Qa2 {[%clk 0:00:19.5]} 31... Qg8 {[%clk 0:00:08.4]} 32. Nc5
{[%clk 0:00:16.7]} 32... Rh2+ {[%clk 0:00:08.1]} 33. Bg2 {[%clk 0:00:12.2]}
33... Bxc5 {[%clk 0:00:08.5]} 34. Kg1 {[%clk 0:00:11.1]} 34... Rxg2+ {[%clk
0:00:08.4]} 35. Qxg2 {[%clk 0:00:10.5]} 35... Bb6 {[%clk 0:00:08.5]} 36. Qh3
{[%clk 0:00:11.1]} 36... Ke7 {[%clk 0:00:06.7]} 37. Qh4+ {[%clk 0:00:11.2]}
37... Kd7 {[%clk 0:00:07.3]} 38. Kf2 {[%clk 0:00:10.2]} 38... Qg4 {[%clk
0:00:06.2]} 39. Qxg4 {[%clk 0:00:09.7]} 39... fxg4 {[%clk 0:00:07.1]} 40. Ke2
{[%clk 0:00:08.9]} 40... Ba4 {[%clk 0:00:06.8]} 41. Kd2 {[%clk 0:00:09.1]} 41...
Kc6 {[%clk 0:00:06.7]} 42. Rh1 {[%clk 0:00:08.2]} 42... f5 {[%clk 0:00:07.1]}
43. Rh7 {[%clk 0:00:07.9]} 43... Bb3 {[%clk 0:00:06.7]} 44. Kc1 {[%clk
0:00:06.2]} 44... Kd6 {[%clk 0:00:06]} 45. Kb2 {[%clk 0:00:06.4]} 45... Ba4
{[%clk 0:00:06.3]} 46. Rg7 {[%clk 0:00:06.1]} 46... Bd7 {[%clk 0:00:06.7]} 47.
Rg8 {[%clk 0:00:05.5]} 47... a5 {[%clk 0:00:06.8]} 48. Ra8 {[%clk 0:00:05.6]}
48... Kc6 {[%clk 0:00:05.2]} 49. Rh8 {[%clk 0:00:05]} 49... Kb5 {[%clk
0:00:04.7]} 50. Ka3 {[%clk 0:00:05.2]} 50... Bc7 {[%clk 0:00:02.4]} 51. Kb2
{[%clk 0:00:03.8]} 51... Bd6 {[%clk 0:00:02.2]} 52. Rd8 {[%clk 0:00:03.5]} 52...
Kc6 {[%clk 0:00:02]} 53. Ra8 {[%clk 0:00:04]} 53... Kb7 {[%clk 0:00:01.5]} 54.
Rh8 {[%clk 0:00:04]} 1-0

[Event "Late-Titled-Tuesday-Blitz-February-27-2024"]
[Site "Chess.com"]
[Date "2024.02.27"]
[Round "10"]
[White "ural58"]
[Black "PepeCuenca"]
[Result "0-1"]
[WhiteElo "2487"]
[BlackElo "2695"]
[TimeControl "180+1"]
[EndTime "15:56:54 PST"]
[Termination "PepeCuenca won on time"]

1. e4 {[%clk 0:03:00.9]} 1... d6 {[%clk 0:02:56.5]} 2. d4 {[%clk 0:03:00.5]}
2... Nf6 {[%clk 0:02:56.9]} 3. Nc3 {[%clk 0:03:00.6]} 3... e5 {[%clk 0:02:57.6]}
4. dxe5 {[%clk 0:02:59.1]} 4... dxe5 {[%clk 0:02:58.5]} 5. Qxd8+ {[%clk
0:02:59]} 5... Kxd8 {[%clk 0:02:59.4]} 6. Bd2 {[%clk 0:02:59]} 6... Nbd7 {[%clk
0:02:52.9]} 7. Bc4 {[%clk 0:02:53.8]} 7... Ke8 {[%clk 0:02:23.2]} 8. Nb5 {[%clk
0:02:37.6]} 8... Bd6 {[%clk 0:02:22.3]} 9. Nxd6+ {[%clk 0:02:36.8]} 9... cxd6
{[%clk 0:02:23.2]} 10. f3 {[%clk 0:02:35.9]} 10... Nc5 {[%clk 0:02:09.8]} 11.
O-O-O {[%clk 0:02:32.7]} 11... Be6 {[%clk 0:02:08.6]} 12. Bxe6 {[%clk
0:02:28.2]} 12... fxe6 {[%clk 0:02:02.1]} 13. Ne2 {[%clk 0:02:19.1]} 13... Ke7
{[%clk 0:01:55]} 14. Nc3 {[%clk 0:02:14.6]} 14... a6 {[%clk 0:01:53.3]} 15. b4
{[%clk 0:02:10.1]} 15... Ncd7 {[%clk 0:01:52.1]} 16. Na4 {[%clk 0:02:08.8]}
16... b5 {[%clk 0:01:46.4]} 17. Nb2 {[%clk 0:02:08.4]} 17... Rhc8 {[%clk
0:01:46]} 18. Be3 {[%clk 0:02:05.9]} 18... Rc6 {[%clk 0:01:34.9]} 19. Rd2 {[%clk
0:02:05.2]} 19... Rac8 {[%clk 0:01:30.1]} 20. Rhd1 {[%clk 0:02:05.2]} 20... Nb6
{[%clk 0:01:06.1]} 21. Bxb6 {[%clk 0:02:02]} 21... Rxb6 {[%clk 0:01:06.1]} 22.
a4 {[%clk 0:01:55.3]} 22... bxa4 {[%clk 0:01:00]} 23. Rd3 {[%clk 0:01:47.8]}
23... Ne8 {[%clk 0:00:50]} 24. Ra3 {[%clk 0:01:28.5]} 24... Rxb4 {[%clk
0:00:47]} 25. Rxa4 {[%clk 0:01:20.5]} 25... Rxa4 {[%clk 0:00:44.3]} 26. Nxa4
{[%clk 0:01:21.1]} 26... Nc7 {[%clk 0:00:36.7]} 27. Rd3 {[%clk 0:01:20]} 27...
Nb5 {[%clk 0:00:35.9]} 28. Kb2 {[%clk 0:01:02.8]} 28... Nd4 {[%clk 0:00:23]} 29.
c3 {[%clk 0:00:56.5]} 29... Rb8+ {[%clk 0:00:22.8]} 30. Ka2 {[%clk 0:00:55.1]}
30... Nc6 {[%clk 0:00:14]} 31. Nb2 {[%clk 0:00:46]} 31... Na5 {[%clk 0:00:13.7]}
32. g3 {[%clk 0:00:32.2]} 32... Nb7 {[%clk 0:00:13.5]} 33. Nc4 {[%clk
0:00:30.6]} 33... Rc8 {[%clk 0:00:12.4]} 34. Ne3 {[%clk 0:00:24.5]} 34... Nc5
{[%clk 0:00:11.5]} 35. Rd2 {[%clk 0:00:22.2]} 35... Rc7 {[%clk 0:00:05.8]} 36.
c4 {[%clk 0:00:20.3]} 36... Rb7 {[%clk 0:00:05.5]} 37. Rc2 {[%clk 0:00:17.6]}
37... Rb3 {[%clk 0:00:05.1]} 38. Re2 {[%clk 0:00:17]} 38... Rd3 {[%clk
0:00:03.3]} 39. Kb2 {[%clk 0:00:16.2]} 39... a5 {[%clk 0:00:03.9]} 40. Kc2
{[%clk 0:00:16]} 40... Rb3 {[%clk 0:00:04.3]} 41. f4 {[%clk 0:00:14.4]} 41...
exf4 {[%clk 0:00:03.4]} 42. gxf4 {[%clk 0:00:14.3]} 42... a4 {[%clk 0:00:04]}
43. e5 {[%clk 0:00:14.3]} 43... dxe5 {[%clk 0:00:04.5]} 44. fxe5 {[%clk
0:00:14.5]} 44... Nd7 {[%clk 0:00:03.2]} 45. Nd1 {[%clk 0:00:12.1]} 45... Nb6
{[%clk 0:00:02.9]} 46. Nb2 {[%clk 0:00:08.8]} 46... Rb4 {[%clk 0:00:02.8]} 47.
Kc3 {[%clk 0:00:08.5]} 47... Rb3+ {[%clk 0:00:03.4]} 48. Kc2 {[%clk 0:00:08.4]}
48... Ra3 {[%clk 0:00:03.1]} 49. Re4 {[%clk 0:00:06.6]} 49... Nd7 {[%clk
0:00:03.4]} 50. Rg4 {[%clk 0:00:03.8]} 50... g6 {[%clk 0:00:03.6]} 51. Nd3
{[%clk 0:00:04.1]} 51... Ra2+ {[%clk 0:00:03]} 52. Kc3 {[%clk 0:00:04.1]} 52...
Rxh2 {[%clk 0:00:03.9]} 53. c5 {[%clk 0:00:03.7]} 53... Rh3 {[%clk 0:00:04.1]}
54. Kc4 {[%clk 0:00:03.3]} 54... Rxd3 {[%clk 0:00:03.7]} 0-1

[Event "Late-Titled-Tuesday-Blitz-February-27-2024"]
[Site "Chess.com"]
[Date "2024.02.27"]
[Round "10"]
[White "IngOscarArdila"]
[Black "ArturoCaceres"]
[Result "1-0"]
[WhiteElo "2312"]
[BlackElo "2440"]
[TimeControl "180+1"]
[EndTime "15:56:56 PST"]
[Termination "IngOscarArdila won on time"]

1. d4 {[%clk 0:03:00.4]} 1... b6 {[%clk 0:02:56.9]} 2. c4 {[%clk 0:03:00.4]}
2... Bb7 {[%clk 0:02:56.4]} 3. Nf3 {[%clk 0:02:59]} 3... Nf6 {[%clk 0:02:50]} 4.
e3 {[%clk 0:02:59.2]} 4... e6 {[%clk 0:02:49.4]} 5. Be2 {[%clk 0:02:59.7]} 5...
d5 {[%clk 0:02:38.3]} 6. O-O {[%clk 0:02:59.1]} 6... Nbd7 {[%clk 0:02:34.4]} 7.
b3 {[%clk 0:02:59.4]} 7... Bd6 {[%clk 0:02:27.7]} 8. Ba3 {[%clk 0:02:59.3]} 8...
O-O {[%clk 0:02:17.1]} 9. Bxd6 {[%clk 0:02:58.6]} 9... cxd6 {[%clk 0:02:18]} 10.
Nbd2 {[%clk 0:02:56.7]} 10... Rc8 {[%clk 0:02:17.8]} 11. Rc1 {[%clk 0:02:56.2]}
11... dxc4 {[%clk 0:02:17.8]} 12. Nxc4 {[%clk 0:02:50.7]} 12... Qe7 {[%clk
0:02:15.1]} 13. Qd2 {[%clk 0:02:46.9]} 13... d5 {[%clk 0:02:11.1]} 14. Nce5
{[%clk 0:02:45.2]} 14... Ne4 {[%clk 0:02:10.8]} 15. Qb2 {[%clk 0:02:44.8]} 15...
Nxe5 {[%clk 0:02:01.2]} 16. Nxe5 {[%clk 0:02:43.8]} 16... f6 {[%clk 0:01:59.7]}
17. Nf3 {[%clk 0:02:40.5]} 17... Qd7 {[%clk 0:01:48.9]} 18. Bd3 {[%clk
0:02:38.8]} 18... Nd6 {[%clk 0:01:47.3]} 19. a3 {[%clk 0:02:37.4]} 19... Rxc1
{[%clk 0:01:44]} 20. Rxc1 {[%clk 0:02:36.8]} 20... Rc8 {[%clk 0:01:44.9]} 21. h3
{[%clk 0:02:33.4]} 21... Rxc1+ {[%clk 0:01:41.1]} 22. Qxc1 {[%clk 0:02:33.2]}
22... Qc8 {[%clk 0:01:42]} 23. Qxc8+ {[%clk 0:02:29.2]} 23... Bxc8 {[%clk
0:01:42.9]} 24. Kf1 {[%clk 0:02:29.7]} 24... Bd7 {[%clk 0:01:36.7]} 25. Ke1
{[%clk 0:02:28.7]} 25... Bb5 {[%clk 0:01:36]} 26. Bc2 {[%clk 0:02:26.7]} 26...
g6 {[%clk 0:01:32.8]} 27. a4 {[%clk 0:02:17.3]} 27... Bd7 {[%clk 0:01:31.1]} 28.
Kd2 {[%clk 0:02:15.6]} 28... Kf7 {[%clk 0:01:29.5]} 29. Kc3 {[%clk 0:02:15.4]}
29... a5 {[%clk 0:01:28.3]} 30. Bd3 {[%clk 0:02:06.9]} 30... Ke7 {[%clk
0:01:27.6]} 31. Nd2 {[%clk 0:02:00.2]} 31... e5 {[%clk 0:01:22.6]} 32. Bc2
{[%clk 0:01:58.3]} 32... Bf5 {[%clk 0:01:19.6]} 33. Bd1 {[%clk 0:01:53.5]} 33...
Be4 {[%clk 0:01:14.8]} 34. f3 {[%clk 0:01:51.2]} 34... Bf5 {[%clk 0:01:05.1]}
35. g4 {[%clk 0:01:51.5]} 35... Be6 {[%clk 0:01:04.1]} 36. b4 {[%clk 0:01:51.9]}
36... h5 {[%clk 0:01:01.2]} 37. bxa5 {[%clk 0:01:51.2]} 37... bxa5 {[%clk
0:01:02.1]} 38. Nb3 {[%clk 0:01:51.3]} 38... Nb7 {[%clk 0:01:00.9]} 39. Be2
{[%clk 0:01:47.1]} 39... hxg4 {[%clk 0:00:44.8]} 40. hxg4 {[%clk 0:01:48]} 40...
Kd6 {[%clk 0:00:34.9]} 41. Ba6 {[%clk 0:01:47.8]} 41... Nd8 {[%clk 0:00:30]} 42.
Nxa5 {[%clk 0:01:47.2]} 42... e4 {[%clk 0:00:30.4]} 43. fxe4 {[%clk 0:01:45.1]}
43... dxe4 {[%clk 0:00:31.3]} 44. Be2 {[%clk 0:01:43.3]} 44... Nf7 {[%clk
0:00:26]} 45. Kb4 {[%clk 0:01:42.8]} 45... Nh6 {[%clk 0:00:23]} 46. Nc4+ {[%clk
0:01:38.3]} 46... Kc7 {[%clk 0:00:22.8]} 47. Nd2 {[%clk 0:01:37.9]} 47... Bxg4
{[%clk 0:00:18.7]} 48. Bxg4 {[%clk 0:01:34.3]} 48... Nxg4 {[%clk 0:00:19.6]} 49.
Nxe4 {[%clk 0:01:34.9]} 49... f5 {[%clk 0:00:20]} 50. Nc5 {[%clk 0:01:23.9]}
50... Nxe3 {[%clk 0:00:19.4]} 51. Ne6+ {[%clk 0:01:22.3]} 51... Kd6 {[%clk
0:00:16.9]} 52. Nf4 {[%clk 0:01:22.7]} 52... g5 {[%clk 0:00:16.9]} 53. Nd3
{[%clk 0:01:18.6]} 53... g4 {[%clk 0:00:17]} 54. a5 {[%clk 0:01:19.1]} 54... g3
{[%clk 0:00:16]} 55. Ne1 {[%clk 0:01:13.7]} 55... g2 {[%clk 0:00:14.3]} 56. Nf3
{[%clk 0:01:13.9]} 56... Nd5+ {[%clk 0:00:09.8]} 57. Kc4 {[%clk 0:01:11.2]}
57... Ne3+ {[%clk 0:00:08.1]} 58. Kd3 {[%clk 0:01:11.2]} 58... Ng4 {[%clk
0:00:08.1]} 59. Ke2 {[%clk 0:01:08.6]} 59... Kc6 {[%clk 0:00:07.3]} 60. a6
{[%clk 0:00:53.2]} 60... Kb6 {[%clk 0:00:07.3]} 61. d5 {[%clk 0:00:53.8]} 61...
Kxa6 {[%clk 0:00:07.3]} 62. Kd3 {[%clk 0:00:53]} 62... Kb6 {[%clk 0:00:06.1]}
63. Kd4 {[%clk 0:00:53.9]} 63... Kc7 {[%clk 0:00:06.6]} 64. Kc5 {[%clk
0:00:54.1]} 64... Kd7 {[%clk 0:00:06.2]} 65. d6 {[%clk 0:00:51.3]} 65... Ne5
{[%clk 0:00:05.7]} 66. Nxe5+ {[%clk 0:00:49.7]} 66... Ke6 {[%clk 0:00:05.6]} 67.
Nf3 {[%clk 0:00:50.6]} 67... f4 {[%clk 0:00:05.8]} 68. Kc6 {[%clk 0:00:50.3]}
68... Kf6 {[%clk 0:00:06.3]} 69. d7 {[%clk 0:00:50.6]} 69... Kf5 {[%clk
0:00:05.6]} 70. d8=Q {[%clk 0:00:50.4]} 70... Kg4 {[%clk 0:00:06.5]} 71. Qd5
{[%clk 0:00:49.6]} 71... Kg3 {[%clk 0:00:06.3]} 72. Qe4 {[%clk 0:00:49.3]} 1-0

[Event "Late-Titled-Tuesday-Blitz-February-27-2024"]
[Site "Chess.com"]
[Date "2024.02.27"]
[Round "10"]
[White "vi_pranav"]
[Black "grzechu96"]
[Result "1-0"]
[WhiteElo "3091"]
[BlackElo "2746"]
[TimeControl "180+1"]
[EndTime "15:56:57 PST"]
[Termination "vi_pranav won by resignation"]

1. d4 {[%clk 0:02:57.9]} 1... d5 {[%clk 0:03:00.2]} 2. Nc3 {[%clk 0:02:56.7]}
2... Nf6 {[%clk 0:03:00]} 3. Bf4 {[%clk 0:02:56.9]} 3... a6 {[%clk 0:03:00.3]}
4. e3 {[%clk 0:02:53.3]} 4... Bf5 {[%clk 0:03:00.4]} 5. Nf3 {[%clk 0:02:51.1]}
5... e6 {[%clk 0:03:00.4]} 6. Ne5 {[%clk 0:02:51.5]} 6... h6 {[%clk 0:03:00.9]}
7. Bd3 {[%clk 0:02:45.6]} 7... Bxd3 {[%clk 0:03:00.4]} 8. cxd3 {[%clk
0:02:46.5]} 8... Nbd7 {[%clk 0:02:59.8]} 9. O-O {[%clk 0:02:45]} 9... Be7 {[%clk
0:02:54]} 10. Rc1 {[%clk 0:02:41.8]} 10... c5 {[%clk 0:02:45.8]} 11. dxc5 {[%clk
0:02:33]} 11... Nxc5 {[%clk 0:02:44.3]} 12. d4 {[%clk 0:02:24.6]} 12... Nce4
{[%clk 0:02:31.5]} 13. Nxe4 {[%clk 0:02:19.1]} 13... Nxe4 {[%clk 0:02:32.4]} 14.
Qb3 {[%clk 0:02:18.4]} 14... Nd6 {[%clk 0:02:30.8]} 15. Nd3 {[%clk 0:02:12.6]}
15... O-O {[%clk 0:02:27]} 16. Bxd6 {[%clk 0:02:10.1]} 16... Qxd6 {[%clk
0:02:22.4]} 17. Qxb7 {[%clk 0:02:08.1]} 17... Rfb8 {[%clk 0:02:13]} 18. Qc6
{[%clk 0:02:03.5]} 18... Qd8 {[%clk 0:02:11.6]} 19. g3 {[%clk 0:01:55.7]} 19...
a5 {[%clk 0:02:09.6]} 20. Qa4 {[%clk 0:01:53.9]} 20... h5 {[%clk 0:02:01.4]} 21.
Rc2 {[%clk 0:01:52.4]} 21... h4 {[%clk 0:02:01.3]} 22. Rfc1 {[%clk 0:01:51.4]}
22... Bd6 {[%clk 0:02:00.6]} 23. Rc6 {[%clk 0:01:37.9]} 23... Qe7 {[%clk
0:02:00.4]} 24. R1c3 {[%clk 0:01:34.6]} 24... Rd8 {[%clk 0:01:57.8]} 25. Qc2
{[%clk 0:01:33.2]} 25... Qg5 {[%clk 0:01:56.2]} 26. Rc8 {[%clk 0:01:30.7]} 26...
hxg3 {[%clk 0:01:50.5]} 27. hxg3 {[%clk 0:01:28.8]} 27... Bxg3 {[%clk 0:01:51]}
28. Rxd8+ {[%clk 0:01:22.9]} 28... Rxd8 {[%clk 0:01:50.5]} 29. fxg3 {[%clk
0:01:23.2]} 29... Qxg3+ {[%clk 0:01:50.9]} 30. Qg2 {[%clk 0:01:22.6]} 30...
Qxe3+ {[%clk 0:01:51.1]} 31. Qf2 {[%clk 0:01:23.2]} 31... Qg5+ {[%clk
0:01:49.3]} 32. Kf1 {[%clk 0:01:21.7]} 32... f6 {[%clk 0:01:38.2]} 33. Nc5
{[%clk 0:01:12.7]} 33... Qg4 {[%clk 0:01:37.2]} 34. Rg3 {[%clk 0:01:07.8]} 34...
Qd1+ {[%clk 0:01:34.8]} 35. Kg2 {[%clk 0:01:04.7]} 35... Kf7 {[%clk 0:01:25.5]}
36. Qe3 {[%clk 0:00:29.5]} 36... Qc2+ {[%clk 0:01:21.8]} 37. Kf1 {[%clk
0:00:27.5]} 37... Qb1+ {[%clk 0:01:20.3]} 38. Kf2 {[%clk 0:00:14.9]} 38... Qxb2+
{[%clk 0:01:18.7]} 39. Kf3 {[%clk 0:00:14.8]} 39... e5 {[%clk 0:01:11.9]} 40.
dxe5 {[%clk 0:00:12.7]} 40... Qxe5 {[%clk 0:00:59.2]} 41. Qxe5 {[%clk
0:00:05.3]} 41... fxe5 {[%clk 0:01:00.1]} 42. Rxg7+ {[%clk 0:00:04.3]} 42... Kf6
{[%clk 0:01:00.6]} 43. Ra7 {[%clk 0:00:03.6]} 43... Rh8 {[%clk 0:01:01]} 44.
Rxa5 {[%clk 0:00:01.9]} 44... Rh3+ {[%clk 0:01:00.7]} 45. Ke2 {[%clk 0:00:02.3]}
45... Rh2+ {[%clk 0:00:47.7]} 46. Ke3 {[%clk 0:00:01.8]} 46... Rh3+ {[%clk
0:00:47.4]} 47. Kd2 {[%clk 0:00:02.3]} 47... e4 {[%clk 0:00:37.9]} 48. Nb3
{[%clk 0:00:01.6]} 48... Ke5 {[%clk 0:00:37.3]} 49. Ra8 {[%clk 0:00:02.3]} 49...
Rh2+ {[%clk 0:00:33.8]} 50. Kc3 {[%clk 0:00:02.7]} 50... Rh3+ {[%clk 0:00:32]}
51. Kb4 {[%clk 0:00:03.1]} 51... Rh1 {[%clk 0:00:18.6]} 52. Re8+ {[%clk
0:00:01.5]} 52... Kf4 {[%clk 0:00:18.5]} 53. a4 {[%clk 0:00:02.2]} 53... Ke3
{[%clk 0:00:18.3]} 54. a5 {[%clk 0:00:02.6]} 54... d4 {[%clk 0:00:17.4]} 55. a6
{[%clk 0:00:03.1]} 55... Rh7 {[%clk 0:00:17.8]} 56. Nc5 {[%clk 0:00:02.4]} 56...
d3 {[%clk 0:00:17.3]} 57. Rxe4+ {[%clk 0:00:02.9]} 57... Kd2 {[%clk 0:00:07.1]}
58. Rd4 {[%clk 0:00:03]} 58... Kc2 {[%clk 0:00:06.4]} 59. Rxd3 {[%clk
0:00:03.5]} 1-0

[Event "Late-Titled-Tuesday-Blitz-February-27-2024"]
[Site "Chess.com"]
[Date "2024.02.27"]
[Round "10"]
[White "rose107"]
[Black "PawnEatingZombie"]
[Result "1/2-1/2"]
[WhiteElo "2110"]
[BlackElo "2165"]
[TimeControl "180+1"]
[EndTime "15:57:01 PST"]
[Termination "Game drawn by stalemate"]

1. e4 {[%clk 0:03:00.9]} 1... d6 {[%clk 0:02:56.9]} 2. d4 {[%clk 0:03:00.1]}
2... Nf6 {[%clk 0:02:56.9]} 3. Nc3 {[%clk 0:02:57.1]} 3... e5 {[%clk 0:02:57]}
4. dxe5 {[%clk 0:02:54.7]} 4... dxe5 {[%clk 0:02:55.8]} 5. Qxd8+ {[%clk
0:02:54.9]} 5... Kxd8 {[%clk 0:02:56.7]} 6. Nf3 {[%clk 0:02:53.9]} 6... Bd6
{[%clk 0:02:55.5]} 7. Bg5 {[%clk 0:02:52.4]} 7... Be6 {[%clk 0:02:52.6]} 8.
O-O-O {[%clk 0:02:49.4]} 8... Nd7 {[%clk 0:02:49.3]} 9. Bb5 {[%clk 0:02:45.8]}
9... Kc8 {[%clk 0:02:48.8]} 10. Rhe1 {[%clk 0:02:31.1]} 10... a6 {[%clk
0:02:42.5]} 11. Ba4 {[%clk 0:02:29.8]} 11... Nc5 {[%clk 0:02:18.8]} 12. Bxf6
{[%clk 0:02:21.9]} 12... gxf6 {[%clk 0:02:18.1]} 13. Bb3 {[%clk 0:02:21.9]}
13... Nxb3+ {[%clk 0:02:17.3]} 14. axb3 {[%clk 0:02:19.5]} 14... Bc5 {[%clk
0:02:06.5]} 15. Re2 {[%clk 0:02:15.8]} 15... c6 {[%clk 0:02:05.9]} 16. Nh4
{[%clk 0:02:10.7]} 16... Rg8 {[%clk 0:02:01.3]} 17. Na4 {[%clk 0:02:07.7]} 17...
Ba7 {[%clk 0:01:55.4]} 18. f3 {[%clk 0:02:05.7]} 18... Kc7 {[%clk 0:01:53.9]}
19. Nf5 {[%clk 0:02:05.2]} 19... h5 {[%clk 0:01:34.5]} 20. Kb1 {[%clk
0:01:50.7]} 20... Rad8 {[%clk 0:01:27]} 21. Red2 {[%clk 0:01:44.9]} 21... Rxd2
{[%clk 0:01:26.6]} 22. Rxd2 {[%clk 0:01:45.1]} 22... Bxf5 {[%clk 0:01:27]} 23.
exf5 {[%clk 0:01:45.4]} 23... Rg5 {[%clk 0:01:27.5]} 24. Nc3 {[%clk 0:01:40.2]}
24... Rxf5 {[%clk 0:01:25.3]} 25. Ne4 {[%clk 0:01:40.7]} 25... h4 {[%clk
0:01:05]} 26. h3 {[%clk 0:01:38.5]} 26... Rf4 {[%clk 0:01:02.6]} 27. c3 {[%clk
0:01:13.8]} 27... f5 {[%clk 0:01:02.7]} 28. Ng5 {[%clk 0:01:13.3]} 28... e4
{[%clk 0:01:00.5]} 29. Nxf7 {[%clk 0:00:42.7]} 29... exf3 {[%clk 0:00:57]} 30.
gxf3 {[%clk 0:00:43.6]} 30... Rxf3 {[%clk 0:00:56.4]} 31. Ng5 {[%clk 0:00:44.5]}
31... Rf1+ {[%clk 0:00:32.7]} 32. Ka2 {[%clk 0:00:42.4]} 32... Be3 {[%clk
0:00:33]} 33. Ne6+ {[%clk 0:00:37.8]} 33... Kb6 {[%clk 0:00:33.1]} 34. Re2
{[%clk 0:00:37.1]} 34... f4 {[%clk 0:00:32.3]} 35. b4 {[%clk 0:00:30.7]} 35...
Rf3 {[%clk 0:00:31.9]} 36. Ng5 {[%clk 0:00:29.5]} 36... Rg3 {[%clk 0:00:32.1]}
37. Ne4 {[%clk 0:00:23.8]} 37... Rxh3 {[%clk 0:00:32.2]} 38. c4 {[%clk
0:00:23.7]} 38... Rg3 {[%clk 0:00:22.5]} 39. Nxg3 {[%clk 0:00:21.8]} 39... hxg3
{[%clk 0:00:22.8]} 40. Kb3 {[%clk 0:00:20.6]} 40... f3 {[%clk 0:00:18.5]} 41.
Rxe3 {[%clk 0:00:20.5]} 41... g2 {[%clk 0:00:17.9]} 42. c5+ {[%clk 0:00:21.1]}
42... Kc7 {[%clk 0:00:17.6]} 43. Rxf3 {[%clk 0:00:19.3]} 43... g1=Q {[%clk
0:00:16.6]} 44. Rf7+ {[%clk 0:00:20.2]} 44... Kb8 {[%clk 0:00:15.6]} 45. Rf8+
{[%clk 0:00:20.1]} 45... Ka7 {[%clk 0:00:15.8]} 46. Ka4 {[%clk 0:00:20]} 46...
Qd1+ {[%clk 0:00:15.5]} 47. Ka3 {[%clk 0:00:19.9]} 47... Qd3+ {[%clk 0:00:14.9]}
48. Ka4 {[%clk 0:00:18.7]} 48... Qb5+ {[%clk 0:00:14.9]} 49. Kb3 {[%clk
0:00:18.2]} 49... a5 {[%clk 0:00:15.5]} 50. Rf4 {[%clk 0:00:17]} 50... axb4
{[%clk 0:00:12.5]} 51. Rxb4 {[%clk 0:00:17.6]} 51... Qxc5 {[%clk 0:00:12.9]} 52.
Ka3 {[%clk 0:00:17.1]} 52... b5 {[%clk 0:00:10.4]} 53. Kb3 {[%clk 0:00:16.6]}
53... Kb6 {[%clk 0:00:10.4]} 54. Rh4 {[%clk 0:00:16.2]} 54... Qe3+ {[%clk
0:00:10.2]} 55. Ka2 {[%clk 0:00:15.6]} 55... c5 {[%clk 0:00:10.2]} 56. Rg4
{[%clk 0:00:14.3]} 56... Ka5 {[%clk 0:00:10]} 57. Rg7 {[%clk 0:00:13.4]} 57...
Qe6+ {[%clk 0:00:08.2]} 58. Kb1 {[%clk 0:00:12.2]} 58... Kb4 {[%clk 0:00:06.9]}
59. Rd7 {[%clk 0:00:10.9]} 59... c4 {[%clk 0:00:05.6]} 60. Rd1 {[%clk
0:00:09.6]} 60... Qe4+ {[%clk 0:00:05]} 61. Ka1 {[%clk 0:00:09.5]} 61... Qe2
{[%clk 0:00:03.6]} 62. Rc1 {[%clk 0:00:09.3]} 62... Kc5 {[%clk 0:00:02.5]} 63.
Kb1 {[%clk 0:00:08.7]} 63... b4 {[%clk 0:00:02.2]} 64. Ka1 {[%clk 0:00:08.9]}
64... b3 {[%clk 0:00:02.3]} 65. Rh1 {[%clk 0:00:07.8]} 65... Qc2 {[%clk
0:00:02]} 66. Rh5+ {[%clk 0:00:07.3]} 66... Kb4 {[%clk 0:00:02.5]} 67. Rb5+
{[%clk 0:00:07]} 67... Kxb5 {[%clk 0:00:01.6]} 1/2-1/2